[Event "*** Titled Tuesday Blitz"]
[Site "Chess.com"]
[Date "2020.04.28"]
[Round "8"]
[White "Ekka83"]
[Black "mshuaau0"]
[Result "1-0"]
[WhiteElo "2392"]
[BlackElo "2135"]
[TimeControl "180+1"]
[EndTime "11:35:11 PDT"]
[Termination "Ekka83 won on time"]

1. e4 {[%clk 0:02:56.9]} 1... e5 {[%clk 0:02:59.1]} 2. Nf3 {[%clk 0:02:56.6]}
2... Nc6 {[%clk 0:02:59.2]} 3. d4 {[%clk 0:02:54.4]} 3... exd4 {[%clk
0:02:58.7]} 4. Nxd4 {[%clk 0:02:55.3]} 4... Nf6 {[%clk 0:02:58.2]} 5. Nxc6
{[%clk 0:02:55.2]} 5... bxc6 {[%clk 0:02:56.4]} 6. e5 {[%clk 0:02:55.6]} 6...
Qe7 {[%clk 0:02:56.3]} 7. Qe2 {[%clk 0:02:55.2]} 7... Nd5 {[%clk 0:02:55.6]} 8.
c4 {[%clk 0:02:55.3]} 8... Nb6 {[%clk 0:02:55.2]} 9. g3 {[%clk 0:02:49.6]} 9...
Ba6 {[%clk 0:02:51.6]} 10. b3 {[%clk 0:02:47.7]} 10... d5 {[%clk 0:02:35.4]} 11.
exd6 {[%clk 0:02:45.4]} 11... Qxe2+ {[%clk 0:02:32.3]} 12. Bxe2 {[%clk
0:02:44.2]} 12... cxd6 {[%clk 0:02:24.6]} 13. O-O {[%clk 0:02:42]} 13... d5
{[%clk 0:02:03.3]} 14. cxd5 {[%clk 0:02:36.5]} 14... Bxe2 {[%clk 0:02:02.2]} 15.
Re1 {[%clk 0:02:36.7]} 15... cxd5 {[%clk 0:01:58.9]} 16. Rxe2+ {[%clk
0:02:36.7]} 16... Kd7 {[%clk 0:01:59]} 17. Bb2 {[%clk 0:02:30.9]} 17... f6
{[%clk 0:01:46.5]} 18. Nc3 {[%clk 0:02:30]} 18... Bb4 {[%clk 0:01:43.2]} 19. Rd1
{[%clk 0:02:23.2]} 19... Bxc3 {[%clk 0:01:43]} 20. Bxc3 {[%clk 0:02:23.1]} 20...
Rhe8 {[%clk 0:01:29.5]} 21. Red2 {[%clk 0:02:21.6]} 21... Kc6 {[%clk 0:01:23.2]}
22. Bd4 {[%clk 0:02:16.8]} 22... Rad8 {[%clk 0:01:21.2]} 23. a4 {[%clk
0:02:10.8]} 23... Re4 {[%clk 0:01:10.4]} 24. f3 {[%clk 0:02:08.8]} 24... Re7
{[%clk 0:00:53.2]} 25. Rc2+ {[%clk 0:02:03.8]} 25... Kb7 {[%clk 0:00:51.9]} 26.
a5 {[%clk 0:01:53.6]} 26... Nd7 {[%clk 0:00:45.2]} 27. Kf2 {[%clk 0:01:47.1]}
27... Ne5 {[%clk 0:00:43.4]} 28. Bc5 {[%clk 0:01:37.4]} 28... Rc7 {[%clk
0:00:38.7]} 29. f4 {[%clk 0:01:26.3]} 29... Nd7 {[%clk 0:00:24.6]} 30. Rxd5
{[%clk 0:01:23.2]} 30... Nxc5 {[%clk 0:00:21.7]} 31. Rcxc5 {[%clk 0:01:14.4]}
31... Rxc5 {[%clk 0:00:22.2]} 32. Rxd8 {[%clk 0:01:11.7]} 32... Rc2+ {[%clk
0:00:21.5]} 33. Kf3 {[%clk 0:01:11.3]} 33... Rxh2 {[%clk 0:00:19]} 34. Rd7+
{[%clk 0:01:10.8]} 34... Ka6 {[%clk 0:00:19.4]} 35. Rxg7 {[%clk 0:01:11]} 35...
h5 {[%clk 0:00:18]} 36. Rf7 {[%clk 0:01:08.9]} 36... h4 {[%clk 0:00:13.3]} 37.
g4 {[%clk 0:01:09.1]} 37... Rh3+ {[%clk 0:00:12.8]} 38. Kf2 {[%clk 0:01:07.7]}
38... Rxb3 {[%clk 0:00:13.7]} 39. Rxf6+ {[%clk 0:01:07.6]} 39... Kxa5 {[%clk
0:00:14]} 40. g5 {[%clk 0:01:08]} 40... Kb5 {[%clk 0:00:05.1]} 41. g6 {[%clk
0:01:06.4]} 41... Rg3 {[%clk 0:00:04.1]} 42. Rf5+ {[%clk 0:01:04.2]} 42... Kc6
{[%clk 0:00:03.9]} 43. Rg5 {[%clk 0:01:04.2]} 1-0

[Event "*** Titled Tuesday Blitz"]
[Site "Chess.com"]
[Date "2020.04.28"]
[Round "8"]
[White "InitiatingASC"]
[Black "floplover"]
[Result "0-1"]
[WhiteElo "2386"]
[BlackElo "2244"]
[TimeControl "180+1"]
[EndTime "11:35:12 PDT"]
[Termination "floplover won by resignation"]

1. d4 {[%clk 0:03:00.9]} 1... Nf6 {[%clk 0:02:59.7]} 2. c4 {[%clk 0:03:00.6]}
2... e6 {[%clk 0:03:00.6]} 3. Nc3 {[%clk 0:03:00.3]} 3... Bb4 {[%clk 0:03:00.6]}
4. e3 {[%clk 0:02:58.7]} 4... c5 {[%clk 0:02:59.6]} 5. Bd3 {[%clk 0:02:58.5]}
5... O-O {[%clk 0:02:59]} 6. Ne2 {[%clk 0:02:56.8]} 6... d5 {[%clk 0:02:57.8]}
7. O-O {[%clk 0:02:56.7]} 7... cxd4 {[%clk 0:02:51]} 8. exd4 {[%clk 0:02:57.6]}
8... dxc4 {[%clk 0:02:44.1]} 9. Bxc4 {[%clk 0:02:56]} 9... b6 {[%clk 0:02:43.6]}
10. a3 {[%clk 0:02:53]} 10... Bd6 {[%clk 0:02:31.1]} 11. Bg5 {[%clk 0:02:50.4]}
11... Bb7 {[%clk 0:02:30.4]} 12. d5 {[%clk 0:02:41.2]} 12... exd5 {[%clk
0:02:24.4]} 13. Nxd5 {[%clk 0:02:39.5]} 13... Nbd7 {[%clk 0:02:21.4]} 14. Nxf6+
{[%clk 0:02:33.8]} 14... Nxf6 {[%clk 0:02:21.3]} 15. Ng3 {[%clk 0:02:29]} 15...
h6 {[%clk 0:02:10.7]} 16. Bd2 {[%clk 0:02:21.4]} 16... Rc8 {[%clk 0:02:00.8]}
17. Be2 {[%clk 0:02:18.7]} 17... Be5 {[%clk 0:01:52.7]} 18. Bb4 {[%clk
0:02:09.3]} 18... Re8 {[%clk 0:01:40.9]} 19. Rb1 {[%clk 0:01:58.1]} 19... Qxd1
{[%clk 0:01:34.2]} 20. Bxd1 {[%clk 0:01:57.6]} 20... a5 {[%clk 0:01:14.7]} 21.
Bd2 {[%clk 0:01:56.5]} 21... Red8 {[%clk 0:01:06.7]} 22. Be3 {[%clk 0:01:54.9]}
22... Nd5 {[%clk 0:01:06]} 23. Bd2 {[%clk 0:01:41.6]} 23... Bf4 {[%clk
0:01:05.8]} 24. Bxf4 {[%clk 0:01:36.3]} 24... Nxf4 {[%clk 0:01:06.7]} 25. b4
{[%clk 0:01:32.4]} 25... Bxg2 {[%clk 0:01:02.7]} 26. Re1 {[%clk 0:01:29.9]}
26... Rd2 {[%clk 0:00:54.5]} 27. Bg4 {[%clk 0:01:24.4]} 27... Rcd8 {[%clk
0:00:39.9]} 28. bxa5 {[%clk 0:01:17.1]} 28... bxa5 {[%clk 0:00:40.8]} 29. Nf5
{[%clk 0:01:07.9]} 29... g6 {[%clk 0:00:35.3]} 30. Ne3 {[%clk 0:01:04.1]} 30...
Be4 {[%clk 0:00:34.4]} 31. Rb5 {[%clk 0:01:00.2]} 31... h5 {[%clk 0:00:34.2]}
32. Rxa5 {[%clk 0:00:50.8]} 32... hxg4 {[%clk 0:00:33.2]} 33. Nxg4 {[%clk
0:00:51.6]} 33... Nh3+ {[%clk 0:00:28.3]} 34. Kf1 {[%clk 0:00:51.4]} 34... Bf3
{[%clk 0:00:22.2]} 35. Nf6+ {[%clk 0:00:27.5]} 35... Kg7 {[%clk 0:00:20.2]} 36.
Ne8+ {[%clk 0:00:24.7]} 36... Kf8 {[%clk 0:00:20.1]} 0-1

[Event "*** Titled Tuesday Blitz"]
[Site "Chess.com"]
[Date "2020.04.28"]
[Round "8"]
[White "AquivaRubinstein"]
[Black "DenishevM"]
[Result "0-1"]
[WhiteElo "2426"]
[BlackElo "2564"]
[TimeControl "180+1"]
[EndTime "11:35:14 PDT"]
[Termination "DenishevM won by resignation"]

1. d4 {[%clk 0:03:00.9]} 1... d5 {[%clk 0:02:59.9]} 2. c4 {[%clk 0:03:00.9]}
2... c6 {[%clk 0:02:59.2]} 3. Nf3 {[%clk 0:03:00.6]} 3... Nf6 {[%clk 0:02:59.4]}
4. Nc3 {[%clk 0:03:00.7]} 4... e6 {[%clk 0:02:59.5]} 5. Bg5 {[%clk 0:02:59.8]}
5... Nbd7 {[%clk 0:02:57.1]} 6. Qc2 {[%clk 0:02:58.6]} 6... h6 {[%clk
0:02:54.9]} 7. Bh4 {[%clk 0:02:57.5]} 7... Bd6 {[%clk 0:02:54.2]} 8. O-O-O
{[%clk 0:02:55.9]} 8... dxc4 {[%clk 0:02:51.7]} 9. e4 {[%clk 0:02:55.8]} 9...
Be7 {[%clk 0:02:51.8]} 10. Bxc4 {[%clk 0:02:53.1]} 10... b5 {[%clk 0:02:51.7]}
11. Bd3 {[%clk 0:02:53]} 11... Bb7 {[%clk 0:02:51.5]} 12. Kb1 {[%clk 0:02:52.6]}
12... Nb6 {[%clk 0:02:47]} 13. d5 {[%clk 0:02:32.7]} 13... exd5 {[%clk
0:02:35.9]} 14. exd5 {[%clk 0:02:27]} 14... Nfxd5 {[%clk 0:02:34.2]} 15. Bxe7
{[%clk 0:02:14.8]} 15... Nxe7 {[%clk 0:02:35.1]} 16. Bxb5 {[%clk 0:02:11.9]}
16... Qc7 {[%clk 0:02:31.4]} 17. Bd3 {[%clk 0:01:55]} 17... O-O {[%clk
0:02:23.4]} 18. Rhe1 {[%clk 0:01:52.8]} 18... Rad8 {[%clk 0:02:11.3]} 19. Ne5
{[%clk 0:01:47.7]} 19... Ned5 {[%clk 0:02:01.2]} 20. Nxd5 {[%clk 0:01:43.1]}
20... Nxd5 {[%clk 0:02:02.1]} 21. a3 {[%clk 0:01:41.6]} 21... Rfe8 {[%clk
0:01:59.9]} 22. Nf3 {[%clk 0:01:36.1]} 22... Qb6 {[%clk 0:01:52.2]} 23. g3
{[%clk 0:01:24.4]} 23... Ba6 {[%clk 0:01:47.5]} 24. Bxa6 {[%clk 0:01:18.3]}
24... Qxa6 {[%clk 0:01:48.4]} 25. Ne5 {[%clk 0:01:17.5]} 25... Qb6 {[%clk
0:01:03.4]} 26. Qxc6 {[%clk 0:01:02.2]} 26... Qxf2 {[%clk 0:00:34.1]} 27. Rf1
{[%clk 0:01:00.1]} 27... Qg2 {[%clk 0:00:25.3]} 28. Nxf7 {[%clk 0:00:53.2]}
28... Rb8 {[%clk 0:00:17.5]} 29. Qc2 {[%clk 0:00:40.7]} 29... Qxc2+ {[%clk
0:00:12.3]} 30. Kxc2 {[%clk 0:00:41]} 30... Ne3+ {[%clk 0:00:13.2]} 31. Kd2
{[%clk 0:00:20.1]} 31... Nxf1+ {[%clk 0:00:12.6]} 32. Rxf1 {[%clk 0:00:20.4]}
32... Rf8 {[%clk 0:00:13.2]} 33. Rf3 {[%clk 0:00:20.3]} 33... Rxf7 {[%clk
0:00:13.1]} 34. Rd3 {[%clk 0:00:21.1]} 0-1

[Event "*** Titled Tuesday Blitz"]
[Site "Chess.com"]
[Date "2020.04.28"]
[Round "8"]
[White "czasnaszachy"]
[Black "DFeco"]
[Result "0-1"]
[WhiteElo "2282"]
[BlackElo "2200"]
[TimeControl "180+1"]
[EndTime "11:35:16 PDT"]
[Termination "DFeco won on time"]

1. d4 {[%clk 0:02:55.1]} 1... d5 {[%clk 0:02:59.4]} 2. c4 {[%clk 0:02:53.1]}
2... c6 {[%clk 0:02:58.7]} 3. cxd5 {[%clk 0:02:52.7]} 3... cxd5 {[%clk
0:02:56.7]} 4. Nc3 {[%clk 0:02:53.6]} 4... Nc6 {[%clk 0:02:55.1]} 5. Bf4 {[%clk
0:02:53.4]} 5... Nf6 {[%clk 0:02:51.8]} 6. e3 {[%clk 0:02:51.4]} 6... a6 {[%clk
0:02:49.5]} 7. Bd3 {[%clk 0:02:50.9]} 7... Bg4 {[%clk 0:02:45.1]} 8. f3 {[%clk
0:02:50.3]} 8... Bd7 {[%clk 0:02:44.1]} 9. Nge2 {[%clk 0:02:48.7]} 9... e6
{[%clk 0:02:43.8]} 10. O-O {[%clk 0:02:47.6]} 10... Be7 {[%clk 0:02:43.1]} 11.
e4 {[%clk 0:02:42.3]} 11... dxe4 {[%clk 0:02:34.3]} 12. fxe4 {[%clk 0:02:39.7]}
12... O-O {[%clk 0:02:34.8]} 13. Kh1 {[%clk 0:02:17]} 13... Qb6 {[%clk
0:02:25.1]} 14. d5 {[%clk 0:01:56.7]} 14... Nb4 {[%clk 0:01:39.7]} 15. Bb1
{[%clk 0:01:39]} 15... exd5 {[%clk 0:01:35.5]} 16. exd5 {[%clk 0:01:36.1]} 16...
Bg4 {[%clk 0:01:32.7]} 17. d6 {[%clk 0:01:00.3]} 17... Rfd8 {[%clk 0:01:15.3]}
18. a3 {[%clk 0:00:32.5]} 18... Bxd6 {[%clk 0:01:13.2]} 19. Qb3 {[%clk
0:00:21.8]} 19... Be6 {[%clk 0:00:56.5]} 20. Qa4 {[%clk 0:00:16.4]} 20... Bxf4
{[%clk 0:00:50.7]} 21. Nxf4 {[%clk 0:00:16.1]} 21... Nbd5 {[%clk 0:00:40.3]} 22.
Ncxd5 {[%clk 0:00:12.9]} 22... Bxd5 {[%clk 0:00:38]} 23. Nxd5 {[%clk 0:00:07.5]}
23... Rxd5 {[%clk 0:00:36.5]} 24. Ba2 {[%clk 0:00:06.6]} 24... Rd2 {[%clk
0:00:31.3]} 25. Qf4 {[%clk 0:00:03]} 25... Qxb2 {[%clk 0:00:24.3]} 26. Qg3
{[%clk 0:00:01.3]} 26... Rad8 {[%clk 0:00:19]} 27. Bc4 {[%clk 0:00:01]} 27...
Qxa1 {[%clk 0:00:16]} 0-1

[Event "*** Titled Tuesday Blitz"]
[Site "Chess.com"]
[Date "2020.04.28"]
[Round "8"]
[White "Balla_Tamas"]
[Black "Koksik_13"]
[Result "0-1"]
[WhiteElo "2553"]
[BlackElo "2719"]
[TimeControl "180+1"]
[EndTime "11:35:17 PDT"]
[Termination "Koksik_13 won by resignation"]

1. e4 {[%clk 0:03:00.9]} 1... e6 {[%clk 0:02:59.8]} 2. d4 {[%clk 0:02:57.3]}
2... d5 {[%clk 0:02:59.9]} 3. Nd2 {[%clk 0:02:57.4]} 3... Nf6 {[%clk 0:02:59.6]}
4. e5 {[%clk 0:02:56.2]} 4... Nfd7 {[%clk 0:03:00]} 5. c3 {[%clk 0:02:56.2]}
5... c5 {[%clk 0:03:00.5]} 6. f4 {[%clk 0:02:55.6]} 6... Nc6 {[%clk 0:03:00.4]}
7. Ndf3 {[%clk 0:02:55.5]} 7... Qb6 {[%clk 0:03:00.7]} 8. a3 {[%clk 0:02:55.1]}
8... Be7 {[%clk 0:02:58.9]} 9. b4 {[%clk 0:02:50.9]} 9... cxd4 {[%clk
0:02:58.7]} 10. cxd4 {[%clk 0:02:50.4]} 10... f6 {[%clk 0:02:59]} 11. Bd3 {[%clk
0:02:46.6]} 11... Nf8 {[%clk 0:02:46.5]} 12. Ne2 {[%clk 0:02:39.4]} 12... Bd7
{[%clk 0:02:46]} 13. h4 {[%clk 0:02:37.6]} 13... O-O-O {[%clk 0:02:43.2]} 14. h5
{[%clk 0:02:37.4]} 14... Kb8 {[%clk 0:02:42.8]} 15. Be3 {[%clk 0:02:32.9]} 15...
g5 {[%clk 0:02:37.9]} 16. exf6 {[%clk 0:02:20]} 16... Bxf6 {[%clk 0:02:37.7]}
17. fxg5 {[%clk 0:02:19.8]} 17... Be7 {[%clk 0:02:35.8]} 18. Bf4+ {[%clk
0:02:12.4]} 18... Ka8 {[%clk 0:02:33.9]} 19. Qd2 {[%clk 0:02:02.9]} 19... e5
{[%clk 0:02:29.6]} 20. Nxe5 {[%clk 0:01:55.4]} 20... Nxe5 {[%clk 0:02:25]} 21.
Bxe5 {[%clk 0:01:48.6]} 21... Rg8 {[%clk 0:02:25.1]} 22. g6 {[%clk 0:01:28.2]}
22... hxg6 {[%clk 0:02:18.2]} 23. h6 {[%clk 0:01:28.8]} 23... Nh7 {[%clk
0:02:18.5]} 24. Bf4 {[%clk 0:01:19.1]} 24... Bf5 {[%clk 0:02:16.6]} 25. O-O-O
{[%clk 0:01:14.6]} 25... a5 {[%clk 0:02:10]} 26. b5 {[%clk 0:01:09.5]} 26...
Bxa3+ {[%clk 0:02:04.9]} 27. Kb1 {[%clk 0:01:09.9]} 27... Bb4 {[%clk 0:02:02.6]}
28. Qc2 {[%clk 0:01:00.8]} 28... Rc8 {[%clk 0:02:01]} 29. Qb3 {[%clk 0:01:00.7]}
29... Rge8 {[%clk 0:01:48.4]} 30. Be5 {[%clk 0:00:53.3]} 30... Bd6 {[%clk
0:01:30.2]} 31. Qxd5 {[%clk 0:00:39.1]} 31... Bxe5 {[%clk 0:01:26]} 32. dxe5
{[%clk 0:00:38.9]} 32... Rc5 {[%clk 0:01:25.6]} 33. Qd4 {[%clk 0:00:33.6]} 33...
Rd8 {[%clk 0:01:20.6]} 34. Bxf5 {[%clk 0:00:19.6]} 34... Rxd4 {[%clk 0:01:19.1]}
35. Nxd4 {[%clk 0:00:20.1]} 35... gxf5 {[%clk 0:01:17]} 36. e6 {[%clk
0:00:20.8]} 36... Rxb5+ {[%clk 0:01:16.5]} 37. Nxb5 {[%clk 0:00:20.5]} 37...
Qxb5+ {[%clk 0:01:17.4]} 38. Ka1 {[%clk 0:00:20.9]} 38... Qa4+ {[%clk
0:01:17.2]} 39. Kb1 {[%clk 0:00:20.5]} 39... Qb3+ {[%clk 0:01:17]} 40. Ka1
{[%clk 0:00:20.9]} 40... Qxe6 {[%clk 0:01:16.9]} 41. Rhe1 {[%clk 0:00:21.6]}
41... Qxh6 {[%clk 0:01:15.5]} 42. Re8+ {[%clk 0:00:20.5]} 42... Ka7 {[%clk
0:01:14.6]} 43. Red8 {[%clk 0:00:18.8]} 43... Qg7+ {[%clk 0:01:11]} 44. Kb1
{[%clk 0:00:17.8]} 44... Qxg2 {[%clk 0:01:11.2]} 45. R1d7 {[%clk 0:00:17.9]}
45... Nf6 {[%clk 0:01:09.9]} 46. Rf7 {[%clk 0:00:18.8]} 46... Nd5 {[%clk
0:01:07.4]} 47. Rxf5 {[%clk 0:00:17.5]} 47... Nc3+ {[%clk 0:01:06.8]} 48. Kc1
{[%clk 0:00:17.3]} 48... Qh1+ {[%clk 0:01:04.2]} 49. Kb2 {[%clk 0:00:16.2]}
49... Qb1+ {[%clk 0:01:03.3]} 50. Kxc3 {[%clk 0:00:16.6]} 50... Qxf5 {[%clk
0:01:02.9]} 0-1

[Event "*** Titled Tuesday Blitz"]
[Site "Chess.com"]
[Date "2020.04.28"]
[Round "8"]
[White "mariofs"]
[Black "lifeissofun"]
[Result "1-0"]
[WhiteElo "2219"]
[BlackElo "2324"]
[TimeControl "180+1"]
[EndTime "11:35:17 PDT"]
[Termination "mariofs won by resignation"]

1. d4 {[%clk 0:03:00.9]} 1... Nf6 {[%clk 0:02:59.4]} 2. c4 {[%clk 0:03:00.6]}
2... e6 {[%clk 0:03:00.3]} 3. g3 {[%clk 0:03:00.5]} 3... Bb4+ {[%clk 0:03:00.9]}
4. Bd2 {[%clk 0:03:00.3]} 4... Be7 {[%clk 0:03:00.9]} 5. Bg2 {[%clk 0:03:00.9]}
5... d5 {[%clk 0:03:01.5]} 6. Nf3 {[%clk 0:03:01.8]} 6... O-O {[%clk 0:02:59.9]}
7. O-O {[%clk 0:03:02.3]} 7... Nbd7 {[%clk 0:03:00.5]} 8. Qc2 {[%clk 0:03:02.7]}
8... Ne4 {[%clk 0:02:59.2]} 9. Bf4 {[%clk 0:02:51.9]} 9... g5 {[%clk 0:02:58.5]}
10. Bc1 {[%clk 0:02:47.5]} 10... f5 {[%clk 0:02:59]} 11. Ne5 {[%clk 0:02:42.1]}
11... Ndf6 {[%clk 0:02:54.5]} 12. c5 {[%clk 0:02:38.3]} 12... Qe8 {[%clk
0:02:50.7]} 13. f3 {[%clk 0:02:36.2]} 13... Nxc5 {[%clk 0:02:27]} 14. dxc5
{[%clk 0:02:37.1]} 14... Qb5 {[%clk 0:02:26.7]} 15. Nd3 {[%clk 0:02:30.2]} 15...
Nd7 {[%clk 0:02:25.6]} 16. b4 {[%clk 0:02:22]} 16... a5 {[%clk 0:02:24.9]} 17.
a4 {[%clk 0:02:20.8]} 17... Qc6 {[%clk 0:02:21.9]} 18. b5 {[%clk 0:02:19.7]}
18... Bxc5+ {[%clk 0:02:21.2]} 19. Kh1 {[%clk 0:02:07.6]} 19... Qb6 {[%clk
0:02:13.6]} 20. Nxc5 {[%clk 0:01:52.4]} 20... Qxc5 {[%clk 0:02:07.2]} 21. Qxc5
{[%clk 0:01:49.3]} 21... Nxc5 {[%clk 0:02:08.1]} 22. Ba3 {[%clk 0:01:48.5]}
22... b6 {[%clk 0:02:06.1]} 23. Rc1 {[%clk 0:01:48.9]} 23... Nb3 {[%clk
0:02:04.6]} 24. Bxf8 {[%clk 0:01:47.4]} 24... Nxc1 {[%clk 0:02:04.7]} 25. Be7
{[%clk 0:01:37.3]} 25... h6 {[%clk 0:02:04.4]} 26. Nc3 {[%clk 0:01:36.2]} 26...
Nb3 {[%clk 0:02:00.1]} 27. Rd1 {[%clk 0:01:30.4]} 27... Kf7 {[%clk 0:01:59]} 28.
Ba3 {[%clk 0:01:28.1]} 28... Bb7 {[%clk 0:01:48.8]} 29. e4 {[%clk 0:01:26.1]}
29... d4 {[%clk 0:01:45.3]} 30. Ne2 {[%clk 0:01:22]} 30... Rd8 {[%clk
0:01:41.8]} 31. Rd3 {[%clk 0:00:46.5]} 31... Nc5 {[%clk 0:01:28.2]} 32. Rxd4
{[%clk 0:00:46.6]} 32... Rxd4 {[%clk 0:01:11.9]} 33. Nxd4 {[%clk 0:00:47.5]}
33... fxe4 {[%clk 0:01:12.1]} 34. fxe4 {[%clk 0:00:47.1]} 34... Nxa4 {[%clk
0:01:12.7]} 35. Ne2 {[%clk 0:00:37]} 35... Kf6 {[%clk 0:01:07.3]} 36. e5+ {[%clk
0:00:36.9]} 36... Kxe5 {[%clk 0:01:06.6]} 37. Bxb7 {[%clk 0:00:37.8]} 37... Kf5
{[%clk 0:01:01.4]} 38. Kg2 {[%clk 0:00:37.6]} 38... e5 {[%clk 0:01:01.1]} 39.
Bf8 {[%clk 0:00:34.2]} 39... h5 {[%clk 0:00:58.2]} 40. h3 {[%clk 0:00:33.1]}
40... Nc5 {[%clk 0:00:57.2]} 41. Bxc5 {[%clk 0:00:32.5]} 41... bxc5 {[%clk
0:00:58.1]} 42. Nc3 {[%clk 0:00:32.9]} 42... Ke6 {[%clk 0:00:54.5]} 43. Kf3
{[%clk 0:00:32.5]} 43... Kd6 {[%clk 0:00:54.2]} 44. Bc6 {[%clk 0:00:32.2]} 44...
c4 {[%clk 0:00:53.7]} 45. Ne4+ {[%clk 0:00:30.7]} 45... Ke6 {[%clk 0:00:53.2]}
46. Nc3 {[%clk 0:00:28.3]} 46... Kd6 {[%clk 0:00:52.7]} 47. Ke4 {[%clk 0:00:28]}
47... Kc5 {[%clk 0:00:53]} 48. Kxe5 {[%clk 0:00:28.4]} 48... Kb4 {[%clk
0:00:53.2]} 49. Kd4 {[%clk 0:00:28.7]} 49... Kb3 {[%clk 0:00:50.8]} 50. Bd5
{[%clk 0:00:26.5]} 1-0

[Event "*** Titled Tuesday Blitz"]
[Site "Chess.com"]
[Date "2020.04.28"]
[Round "8"]
[White "Andrii_Prydun"]
[Black "TregubovP"]
[Result "1-0"]
[WhiteElo "2365"]
[BlackElo "2498"]
[TimeControl "180+1"]
[EndTime "11:35:19 PDT"]
[Termination "Andrii_Prydun won by checkmate"]

1. d4 {[%clk 0:03:00.9]} 1... Nf6 {[%clk 0:02:58.8]} 2. Nc3 {[%clk 0:02:57.9]}
2... d5 {[%clk 0:02:56.2]} 3. Bf4 {[%clk 0:02:58.1]} 3... c6 {[%clk 0:02:52.7]}
4. e3 {[%clk 0:02:56.8]} 4... Bf5 {[%clk 0:02:43.9]} 5. Bd3 {[%clk 0:02:56.4]}
5... Bxd3 {[%clk 0:02:42.9]} 6. cxd3 {[%clk 0:02:57.3]} 6... e6 {[%clk
0:02:41.9]} 7. Nf3 {[%clk 0:02:56.6]} 7... Nh5 {[%clk 0:02:32.1]} 8. Be5 {[%clk
0:02:52.3]} 8... Nd7 {[%clk 0:02:32.2]} 9. O-O {[%clk 0:02:46.9]} 9... f6 {[%clk
0:02:28.6]} 10. Bg3 {[%clk 0:02:46.3]} 10... Nxg3 {[%clk 0:02:28.1]} 11. hxg3
{[%clk 0:02:45.1]} 11... Be7 {[%clk 0:02:26.8]} 12. Rb1 {[%clk 0:02:42.9]} 12...
O-O {[%clk 0:02:26.4]} 13. b4 {[%clk 0:02:42.9]} 13... b5 {[%clk 0:02:23.2]} 14.
a4 {[%clk 0:02:30.6]} 14... a6 {[%clk 0:02:23.3]} 15. e4 {[%clk 0:02:22.1]}
15... Qb6 {[%clk 0:02:11.1]} 16. Re1 {[%clk 0:02:20]} 16... Rfe8 {[%clk
0:02:09.8]} 17. Re2 {[%clk 0:02:15.1]} 17... Bf8 {[%clk 0:02:09]} 18. Qc2 {[%clk
0:02:11.2]} 18... Red8 {[%clk 0:02:04.6]} 19. g4 {[%clk 0:02:08.6]} 19... Qb8
{[%clk 0:01:57.7]} 20. g5 {[%clk 0:02:04.2]} 20... Qf4 {[%clk 0:01:52.3]} 21.
gxf6 {[%clk 0:01:44.8]} 21... Nxf6 {[%clk 0:01:52.3]} 22. Qd2 {[%clk 0:01:44.7]}
22... Qxd2 {[%clk 0:01:41.4]} 23. Rxd2 {[%clk 0:01:45.6]} 23... dxe4 {[%clk
0:01:38.7]} 24. dxe4 {[%clk 0:01:45.2]} 24... bxa4 {[%clk 0:01:37.9]} 25. Ra2
{[%clk 0:01:40.6]} 25... a5 {[%clk 0:01:37.2]} 26. bxa5 {[%clk 0:01:18.3]} 26...
a3 {[%clk 0:01:34.4]} 27. Rb6 {[%clk 0:01:09.3]} 27... c5 {[%clk 0:01:20.6]} 28.
d5 {[%clk 0:00:55.3]} 28... exd5 {[%clk 0:01:18.1]} 29. exd5 {[%clk 0:00:54.4]}
29... Rxa5 {[%clk 0:01:14.3]} 30. Ne5 {[%clk 0:00:44.7]} 30... Nxd5 {[%clk
0:01:05.1]} 31. Rd2 {[%clk 0:00:44]} 31... Nxc3 {[%clk 0:00:46.3]} 32. Rxd8
{[%clk 0:00:43.2]} 32... a2 {[%clk 0:00:46.8]} 33. Rbb8 {[%clk 0:00:43.3]} 33...
a1=Q+ {[%clk 0:00:46.7]} 34. Kh2 {[%clk 0:00:43.8]} 34... g6 {[%clk 0:00:33.4]}
35. Rxf8+ {[%clk 0:00:40]} 35... Kg7 {[%clk 0:00:33.5]} 36. Rf7+ {[%clk
0:00:40.1]} 36... Kh6 {[%clk 0:00:33.7]} 37. Rh8 {[%clk 0:00:40.2]} 37... Ne2
{[%clk 0:00:02.9]} 38. Rhxh7+ {[%clk 0:00:38.4]} 38... Kg5 {[%clk 0:00:03.2]}
39. Nf3+ {[%clk 0:00:38.4]} 39... Kg4 {[%clk 0:00:03.4]} 40. Rh4# {[%clk
0:00:38.5]} 1-0

[Event "*** Titled Tuesday Blitz"]
[Site "Chess.com"]
[Date "2020.04.28"]
[Round "8"]
[White "WIDBIFS"]
[Black "avantage_ru"]
[Result "1-0"]
[WhiteElo "2831"]
[BlackElo "2629"]
[TimeControl "180+1"]
[EndTime "11:35:20 PDT"]
[Termination "WIDBIFS won by resignation"]

1. d4 {[%clk 0:03:00.9]} 1... Nf6 {[%clk 0:02:59.4]} 2. Nf3 {[%clk 0:03:01.2]}
2... g6 {[%clk 0:02:59.5]} 3. g3 {[%clk 0:03:01]} 3... Bg7 {[%clk 0:02:59.4]} 4.
Bg2 {[%clk 0:03:01.9]} 4... O-O {[%clk 0:02:58.9]} 5. O-O {[%clk 0:03:02.5]}
5... d5 {[%clk 0:02:59.1]} 6. c4 {[%clk 0:03:03.2]} 6... dxc4 {[%clk 0:02:58.9]}
7. Na3 {[%clk 0:03:03.9]} 7... c3 {[%clk 0:02:58.4]} 8. bxc3 {[%clk 0:03:04.8]}
8... c5 {[%clk 0:02:58.6]} 9. e3 {[%clk 0:03:05.5]} 9... Nc6 {[%clk 0:02:57.9]}
10. Bb2 {[%clk 0:03:05.1]} 10... Bf5 {[%clk 0:02:57.4]} 11. Nd2 {[%clk
0:03:05.6]} 11... Rc8 {[%clk 0:02:47.2]} 12. Nb3 {[%clk 0:03:04.7]} 12... cxd4
{[%clk 0:02:46.6]} 13. cxd4 {[%clk 0:03:05.6]} 13... Nb4 {[%clk 0:02:43.1]} 14.
Bxb7 {[%clk 0:02:43.2]} 14... Rc7 {[%clk 0:02:43.2]} 15. Bg2 {[%clk 0:02:19.9]}
15... Nd3 {[%clk 0:02:42.7]} 16. Qe2 {[%clk 0:02:00.1]} 16... Nxb2 {[%clk
0:02:37.4]} 17. Qxb2 {[%clk 0:01:59.7]} 17... e5 {[%clk 0:02:34.8]} 18. Rac1
{[%clk 0:01:33.9]} 18... exd4 {[%clk 0:02:19.6]} 19. Nxd4 {[%clk 0:01:29.3]}
19... Ng4 {[%clk 0:02:19.3]} 20. Nab5 {[%clk 0:01:18.8]} 20... Rd7 {[%clk
0:02:13.8]} 21. Qa3 {[%clk 0:01:12.1]} 21... Qg5 {[%clk 0:01:57.2]} 22. h3
{[%clk 0:00:53.9]} 22... Ne5 {[%clk 0:01:48.8]} 23. Nxf5 {[%clk 0:00:33.7]}
23... Qxf5 {[%clk 0:01:48.2]} 24. Nd4 {[%clk 0:00:33.7]} 24... Qd3 {[%clk
0:01:31.1]} 25. Qa4 {[%clk 0:00:33.8]} 25... g5 {[%clk 0:01:16]} 26. Rfd1 {[%clk
0:00:32.4]} 26... Qg6 {[%clk 0:01:15.3]} 27. g4 {[%clk 0:00:27.4]} 27... h5
{[%clk 0:01:13.3]} 28. Nf5 {[%clk 0:00:26.6]} 28... hxg4 {[%clk 0:01:09.6]} 29.
Qxd7 {[%clk 0:00:16.9]} 29... Qh5 {[%clk 0:01:02.7]} 30. Ne7+ {[%clk 0:00:16]}
30... Kh8 {[%clk 0:01:01.4]} 31. hxg4 {[%clk 0:00:15.3]} 31... Qh4 {[%clk
0:00:58]} 32. Qf5 {[%clk 0:00:14.8]} 32... Nxg4 {[%clk 0:00:57.7]} 33. Rc4
{[%clk 0:00:12.3]} 33... Qh2+ {[%clk 0:00:54.5]} 34. Kf1 {[%clk 0:00:12.8]}
34... Nh6 {[%clk 0:00:55.4]} 35. Qh3 {[%clk 0:00:13.1]} 35... Qe5 {[%clk
0:00:53.8]} 36. Re4 {[%clk 0:00:10.6]} 36... Qb5+ {[%clk 0:00:53.4]} 37. Kg1
{[%clk 0:00:10.4]} 37... g4 {[%clk 0:00:51.9]} 38. Qh4 {[%clk 0:00:10.1]} 38...
Qb2 {[%clk 0:00:47.9]} 39. Nf5 {[%clk 0:00:09.4]} 39... Qe2 {[%clk 0:00:45.4]}
40. Rf1 {[%clk 0:00:08]} 40... g3 {[%clk 0:00:45.6]} 41. Nxh6 {[%clk 0:00:07.4]}
1-0